[Event "Live Chess"]
[Site "Chess.com"]
[Date "2024.06.02"]
[Round "-"]
[White "silunn"]
[Black "KeithArkell"]
[Result "0-1"]
[WhiteElo "2202"]
[BlackElo "2413"]
[TimeControl "300"]
[EndTime "0:33:10 PDT"]
[Termination "KeithArkell won by resignation"]

1. e4 {[%clk 0:04:56.9]} 1... c6 {[%clk 0:04:59.4]} 2. d4 {[%clk 0:04:55.5]}
2... d5 {[%clk 0:04:58.7]} 3. exd5 {[%clk 0:04:54.6]} 3... cxd5 {[%clk
0:04:57.6]} 4. c4 {[%clk 0:04:53.7]} 4... Nf6 {[%clk 0:04:56.8]} 5. Nc3 {[%clk
0:04:52.6]} 5... g6 {[%clk 0:04:56.3]} 6. Be3 {[%clk 0:04:49.6]} 6... Bg7 {[%clk
0:04:55.6]} 7. Nf3 {[%clk 0:04:48.2]} 7... O-O {[%clk 0:04:54.8]} 8. Be2 {[%clk
0:04:46.7]} 8... Bg4 {[%clk 0:04:53.3]} 9. c5 {[%clk 0:04:45]} 9... Nc6 {[%clk
0:04:52.1]} 10. h3 {[%clk 0:04:42.4]} 10... Bxf3 {[%clk 0:04:50.9]} 11. Bxf3
{[%clk 0:04:41.2]} 11... b6 {[%clk 0:04:50.4]} 12. cxb6 {[%clk 0:04:38.8]} 12...
axb6 {[%clk 0:04:49.6]} 13. Qd2 {[%clk 0:04:37.4]} 13... e6 {[%clk 0:04:49.1]}
14. O-O {[%clk 0:04:35.9]} 14... Na5 {[%clk 0:04:48.4]} 15. b3 {[%clk
0:04:33.1]} 15... Nb7 {[%clk 0:04:47]} 16. Na4 {[%clk 0:04:30]} 16... Nd6 {[%clk
0:04:45.8]} 17. Qb4 {[%clk 0:04:25.2]} 17... Rb8 {[%clk 0:04:41.3]} 18. Bf4
{[%clk 0:04:23.5]} 18... Nfe8 {[%clk 0:04:37.6]} 19. Rfc1 {[%clk 0:04:13.3]}
19... Rb7 {[%clk 0:04:36.6]} 20. Nc5 {[%clk 0:04:07.7]} 20... bxc5 {[%clk
0:04:34.5]} 0-1

[Event "Live Chess"]
[Site "Chess.com"]
[Date "2024.06.02"]
[Round "-"]
[White "GerardATHart"]
[Black "ProfPoisson"]
[Result "0-1"]
[WhiteElo "1379"]
[BlackElo "1324"]
[TimeControl "300"]
[EndTime "0:33:27 PDT"]
[Termination "ProfPoisson won by checkmate"]

1. e4 {[%clk 0:04:56.1]} 1... e5 {[%clk 0:04:57.9]} 2. Nf3 {[%clk 0:04:54.1]}
2... Nf6 {[%clk 0:04:56]} 3. Nxe5 {[%clk 0:04:50.5]} 3... Nxe4 {[%clk 0:04:52]}
4. d4 {[%clk 0:04:48.9]} 4... d5 {[%clk 0:04:49.7]} 5. Bd3 {[%clk 0:04:45.8]}
5... Nd7 {[%clk 0:04:46.3]} 6. Nf3 {[%clk 0:04:41.7]} 6... Nef6 {[%clk
0:04:30.4]} 7. O-O {[%clk 0:04:40.4]} 7... Be7 {[%clk 0:04:27.6]} 8. c4 {[%clk
0:04:30.2]} 8... c6 {[%clk 0:04:24]} 9. Nc3 {[%clk 0:04:28.3]} 9... O-O {[%clk
0:04:20.5]} 10. Bg5 {[%clk 0:04:13.7]} 10... Re8 {[%clk 0:04:15.4]} 11. Qc2
{[%clk 0:04:11.4]} 11... dxc4 {[%clk 0:04:06.7]} 12. Bxc4 {[%clk 0:04:09.7]}
12... b5 {[%clk 0:04:04.3]} 13. Bb3 {[%clk 0:04:07.9]} 13... Nd5 {[%clk
0:03:51]} 14. Nxd5 {[%clk 0:04:02.6]} 14... Bxg5 {[%clk 0:03:44.8]} 15. Nb4
{[%clk 0:03:53.6]} 15... a5 {[%clk 0:03:38.3]} 16. Nxc6 {[%clk 0:03:51.5]} 16...
Qf6 {[%clk 0:03:24.7]} 17. Rfe1 {[%clk 0:03:30.8]} 17... Bb7 {[%clk 0:03:19.7]}
18. d5 {[%clk 0:03:24.1]} 18... a4 {[%clk 0:03:16.3]} 19. Nfd4 {[%clk
0:02:35.8]} 19... axb3 {[%clk 0:03:07.5]} 20. Qxb3 {[%clk 0:02:34.4]} 20... Bxc6
{[%clk 0:02:55.5]} 21. Nxc6 {[%clk 0:02:24.3]} 21... Rxe1+ {[%clk 0:02:50.6]}
22. Rxe1 {[%clk 0:02:21.6]} 22... h5 {[%clk 0:02:42.4]} 23. Ne7+ {[%clk
0:01:51.3]} 23... Kh7 {[%clk 0:02:34.4]} 24. Qxb5 {[%clk 0:01:34.6]} 24... Ne5
{[%clk 0:02:18.3]} 25. Qb7 {[%clk 0:01:22.4]} 25... Re8 {[%clk 0:02:13.8]} 26.
Nc6 {[%clk 0:01:16.4]} 26... Nf3+ {[%clk 0:02:08.2]} 27. gxf3 {[%clk 0:01:11.6]}
27... Rxe1+ {[%clk 0:02:06.5]} 28. Kg2 {[%clk 0:01:10.4]} 28... Qg6 {[%clk
0:02:02.3]} 29. Ne7 {[%clk 0:01:06.6]} 29... Bxe7+ {[%clk 0:01:58.2]} 30. Kh3
{[%clk 0:00:58.9]} 30... Qf5+ {[%clk 0:01:52.2]} 31. Kg2 {[%clk 0:00:52.4]}
31... Qg5+ {[%clk 0:01:36.7]} 32. Kh3 {[%clk 0:00:50.8]} 32... Rg1 {[%clk
0:01:32.9]} 33. Qc6 {[%clk 0:00:44.2]} 33... Qg2# {[%clk 0:01:28.4]} 0-1

[Event "Live Chess"]
[Site "Chess.com"]
[Date "2024.06.02"]
[Round "-"]
[White "Tatarinov_Maxim"]
[Black "Jadmis_2011"]
[Result "1-0"]
[WhiteElo "2284"]
[BlackElo "1456"]
[TimeControl "300"]
[EndTime "0:33:31 PDT"]
[Termination "Tatarinov_Maxim won by resignation"]

1. d4 {[%clk 0:04:56.8]} 1... d5 {[%clk 0:04:58.6]} 2. c4 {[%clk 0:04:55.2]}
2... e6 {[%clk 0:04:55.6]} 3. Nc3 {[%clk 0:04:54.4]} 3... Nf6 {[%clk 0:04:53.4]}
4. Bg5 {[%clk 0:04:53.5]} 4... Bb4 {[%clk 0:04:52.2]} 5. e3 {[%clk 0:04:52.4]}
5... c6 {[%clk 0:04:51.2]} 6. Nf3 {[%clk 0:04:51.6]} 6... h6 {[%clk 0:04:50.4]}
7. Bxf6 {[%clk 0:04:50.2]} 7... Qxf6 {[%clk 0:04:50.3]} 8. Bd3 {[%clk
0:04:48.8]} 8... O-O {[%clk 0:04:45.8]} 9. O-O {[%clk 0:04:47.9]} 9... Bxc3
{[%clk 0:04:41]} 10. bxc3 {[%clk 0:04:46.8]} 10... b6 {[%clk 0:04:40.5]} 11.
cxd5 {[%clk 0:04:42.6]} 11... cxd5 {[%clk 0:04:37.7]} 12. Ne5 {[%clk 0:04:34.7]}
12... Nd7 {[%clk 0:04:25.7]} 13. f4 {[%clk 0:04:33.4]} 13... Nxe5 {[%clk
0:04:22.4]} 14. fxe5 {[%clk 0:04:32.4]} 14... Qg5 {[%clk 0:04:17.7]} 15. Qf3
{[%clk 0:04:29]} 15... Bd7 {[%clk 0:04:11.1]} 16. Rac1 {[%clk 0:04:15.1]} 16...
b5 {[%clk 0:04:04.9]} 17. Qe2 {[%clk 0:04:08.9]} 17... a6 {[%clk 0:04:03.5]} 18.
Rf3 {[%clk 0:04:07.7]} 18... Rfc8 {[%clk 0:03:57.5]} 19. Rg3 {[%clk 0:04:03.6]}
19... Qe7 {[%clk 0:03:53.3]} 20. Qg4 {[%clk 0:04:00.9]} 20... Qg5 {[%clk
0:03:41.4]} 21. Qh3 {[%clk 0:03:48]} 21... Qe7 {[%clk 0:03:23.7]} 22. Qxh6
{[%clk 0:03:47]} 22... Qf8 {[%clk 0:03:22.1]} 1-0

[Event "Live Chess"]
[Site "Chess.com"]
[Date "2024.06.02"]
[Round "-"]
[White "Kyrylo7770"]
[Black "Essefbee"]
[Result "1-0"]
[WhiteElo "1632"]
[BlackElo "1251"]
[TimeControl "300"]
[EndTime "0:33:48 PDT"]
[Termination "Kyrylo7770 won on time"]

1. d4 {[%clk 0:04:59]} 1... f5 {[%clk 0:04:58.2]} 2. Nf3 {[%clk 0:04:55.7]} 2...
Nf6 {[%clk 0:04:56.7]} 3. c4 {[%clk 0:04:53.9]} 3... e6 {[%clk 0:04:55.6]} 4.
Nc3 {[%clk 0:04:53.4]} 4... Be7 {[%clk 0:04:54.1]} 5. Bf4 {[%clk 0:04:52.6]}
5... O-O {[%clk 0:04:51.7]} 6. e3 {[%clk 0:04:52.2]} 6... d6 {[%clk 0:04:49.7]}
7. Be2 {[%clk 0:04:51.3]} 7... Qe8 {[%clk 0:04:43.7]} 8. d5 {[%clk 0:04:50.3]}
8... e5 {[%clk 0:04:41.7]} 9. Bg5 {[%clk 0:04:48.9]} 9... Nbd7 {[%clk
0:04:36.7]} 10. h4 {[%clk 0:04:47.3]} 10... h6 {[%clk 0:04:33.1]} 11. Bxf6
{[%clk 0:04:46.2]} 11... Bxf6 {[%clk 0:04:30]} 12. Qc2 {[%clk 0:04:43.3]} 12...
Nc5 {[%clk 0:04:18.8]} 13. Nb5 {[%clk 0:04:36.5]} 13... Bd8 {[%clk 0:04:15.5]}
14. O-O-O {[%clk 0:04:22.5]} 14... a6 {[%clk 0:04:14.2]} 15. Nc3 {[%clk
0:04:19.3]} 15... f4 {[%clk 0:03:42.6]} 16. exf4 {[%clk 0:04:13]} 16... Rxf4
{[%clk 0:03:32.7]} 17. h5 {[%clk 0:04:11.8]} 17... Bf5 {[%clk 0:03:26]} 18. Qd2
{[%clk 0:04:01.9]} 18... Bg4 {[%clk 0:03:15.9]} 19. Nh4 {[%clk 0:03:57.4]} 19...
Bg5 {[%clk 0:03:09.5]} 20. Bxg4 {[%clk 0:03:48.8]} 20... Rxg4 {[%clk 0:02:57.3]}
21. Qxg5 {[%clk 0:03:35.3]} 21... Rxg5 {[%clk 0:02:54.5]} 22. Ng6 {[%clk
0:03:32.8]} 22... Qf7 {[%clk 0:02:32.7]} 23. Rdf1 {[%clk 0:03:29.2]} 23... Nd7
{[%clk 0:02:18.1]} 24. g3 {[%clk 0:03:27.2]} 24... Nf8 {[%clk 0:02:13.3]} 25.
Ne4 {[%clk 0:03:20.2]} 25... Rf5 {[%clk 0:02:06.3]} 26. Nh4 {[%clk 0:03:17.6]}
26... Rxh5 {[%clk 0:01:58.6]} 27. g4 {[%clk 0:03:11]} 27... Qf4+ {[%clk
0:01:52.5]} 28. Kb1 {[%clk 0:03:09.5]} 28... Qxe4+ {[%clk 0:01:50.7]} 29. Ka1
{[%clk 0:03:08.3]} 29... Rg5 {[%clk 0:01:47.2]} 30. Nf5 {[%clk 0:03:06.3]} 30...
Rxg4 {[%clk 0:01:37.9]} 31. Ne7+ {[%clk 0:03:02.9]} 31... Kh7 {[%clk 0:01:35.1]}
32. f3 {[%clk 0:03:02.2]} 32... Qxc4 {[%clk 0:01:26.1]} 33. fxg4 {[%clk
0:03:01.2]} 33... Ng6 {[%clk 0:01:15]} 34. Nxg6 {[%clk 0:02:51.3]} 34... Kxg6
{[%clk 0:01:12.2]} 35. g5 {[%clk 0:02:50.4]} 35... hxg5 {[%clk 0:01:09.1]} 36.
Rc1 {[%clk 0:02:49.5]} 36... Qxd5 {[%clk 0:01:06.1]} 37. Rhd1 {[%clk 0:02:47.2]}
37... Qf7 {[%clk 0:01:03.2]} 38. Rf1 {[%clk 0:02:44.1]} 38... Qe7 {[%clk
0:01:02]} 39. Rc2 {[%clk 0:02:35.9]} 39... c6 {[%clk 0:01:00.9]} 40. Rg2 {[%clk
0:02:35.1]} 40... Rf8 {[%clk 0:00:59.1]} 41. Rfg1 {[%clk 0:02:34.4]} 41... Qf6
{[%clk 0:00:55.3]} 42. a3 {[%clk 0:02:33.4]} 42... e4 {[%clk 0:00:49.6]} 43. Re2
{[%clk 0:02:27.4]} 43... Qf3 {[%clk 0:00:47.8]} 44. Rge1 {[%clk 0:02:26]} 44...
d5 {[%clk 0:00:44.3]} 45. Re3 {[%clk 0:02:25.3]} 45... Qxe3 {[%clk 0:00:38.5]}
46. Rxe3 {[%clk 0:02:24.2]} 46... Rf3 {[%clk 0:00:37.4]} 47. Re1 {[%clk
0:02:23.4]} 47... e3 {[%clk 0:00:35.9]} 48. Kb1 {[%clk 0:02:22.5]} 48... d4
{[%clk 0:00:34.9]} 49. Kc2 {[%clk 0:02:22]} 49... c5 {[%clk 0:00:32.7]} 50. b4
{[%clk 0:02:17.8]} 50... b6 {[%clk 0:00:30.2]} 51. bxc5 {[%clk 0:02:16.7]} 51...
bxc5 {[%clk 0:00:28.4]} 52. a4 {[%clk 0:02:15.7]} 52... Rf2+ {[%clk 0:00:26.7]}
53. Kd3 {[%clk 0:02:14.8]} 53... Kf5 {[%clk 0:00:24.5]} 54. Kc4 {[%clk
0:02:12.7]} 54... g4 {[%clk 0:00:18.8]} 55. Kxc5 {[%clk 0:02:11.6]} 55... g3
{[%clk 0:00:17.9]} 56. Kxd4 {[%clk 0:02:10.1]} 56... g2 {[%clk 0:00:16.6]} 57.
Kxe3 {[%clk 0:02:03.8]} 57... Rf1 {[%clk 0:00:15.4]} 58. Rxf1+ {[%clk
0:01:46.6]} 58... gxf1=Q {[%clk 0:00:13.8]} 59. a5 {[%clk 0:01:44.9]} 59... Qh3+
{[%clk 0:00:12]} 60. Kd4 {[%clk 0:01:42.2]} 60... Qf3 {[%clk 0:00:10.3]} 61. Kc5
{[%clk 0:01:39.6]} 61... Qd3 {[%clk 0:00:08.3]} 62. Kc6 {[%clk 0:01:34.6]} 62...
Ke6 {[%clk 0:00:07.3]} 63. Kb6 {[%clk 0:01:33.1]} 63... Kd6 {[%clk 0:00:05.6]}
64. Kb7 {[%clk 0:01:30.5]} 64... Qb5+ {[%clk 0:00:03.9]} 65. Kc8 {[%clk
0:01:30.4]} 65... Qd7+ {[%clk 0:00:01.5]} 66. Kb8 {[%clk 0:01:29.9]} 66... Kc6
{[%clk 0:00:00.4]} 67. Ka8 {[%clk 0:01:26.8]} 1-0

[Event "Live Chess"]
[Site "Chess.com"]
[Date "2024.06.02"]
[Round "-"]
[White "elephantgerrald"]
[Black "Ferrarifan27"]
[Result "0-1"]
[WhiteElo "822"]
[BlackElo "2113"]
[TimeControl "300"]
[EndTime "0:34:26 PDT"]
[Termination "Ferrarifan27 won by checkmate"]

1. e4 {[%clk 0:04:54.1]} 1... e5 {[%clk 0:04:58.8]} 2. Nf3 {[%clk 0:04:51.8]}
2... Nc6 {[%clk 0:04:56.1]} 3. Bc4 {[%clk 0:04:48.6]} 3... Nd4 {[%clk
0:04:52.9]} 4. d3 {[%clk 0:04:42.4]} 4... Nxf3+ {[%clk 0:04:50.1]} 5. Qxf3
{[%clk 0:04:40.9]} 5... Qf6 {[%clk 0:04:48.6]} 6. Qxf6 {[%clk 0:04:38.8]} 6...
Nxf6 {[%clk 0:04:48.5]} 7. O-O {[%clk 0:04:36.9]} 7... Bc5 {[%clk 0:04:44.5]} 8.
Nc3 {[%clk 0:04:34.6]} 8... c6 {[%clk 0:04:38.6]} 9. b3 {[%clk 0:04:28.7]} 9...
Bd4 {[%clk 0:04:36.5]} 10. Bd2 {[%clk 0:04:22.1]} 10... O-O {[%clk 0:04:34.1]}
11. a4 {[%clk 0:04:16.9]} 11... d6 {[%clk 0:04:32.6]} 12. Rab1 {[%clk
0:04:15.3]} 12... Be6 {[%clk 0:04:29.8]} 13. Bxe6 {[%clk 0:04:10.9]} 13... fxe6
{[%clk 0:04:29.7]} 14. Bg5 {[%clk 0:04:08.3]} 14... Rf7 {[%clk 0:04:21.6]} 15.
Ne2 {[%clk 0:04:03.7]} 15... Bb6 {[%clk 0:04:17.4]} 16. Bxf6 {[%clk 0:04:01.4]}
16... Rxf6 {[%clk 0:04:16]} 17. Ng3 {[%clk 0:04:00]} 17... Raf8 {[%clk
0:04:13.8]} 18. Rbe1 {[%clk 0:03:56.6]} 18... Bxf2+ {[%clk 0:04:09.3]} 19. Rxf2
{[%clk 0:03:55.1]} 19... Rxf2 {[%clk 0:04:07.9]} 20. Rf1 {[%clk 0:03:51.7]}
20... Rxc2 {[%clk 0:04:05.4]} 21. Rxf8+ {[%clk 0:03:49.3]} 21... Kxf8 {[%clk
0:04:05.3]} 22. Nh5 {[%clk 0:03:48.3]} 22... Rc3 {[%clk 0:04:02.5]} 23. Kf2
{[%clk 0:03:45.8]} 23... Rxd3 {[%clk 0:04:01.5]} 24. Ng3 {[%clk 0:03:43.4]}
24... Rxb3 {[%clk 0:04:00.1]} 25. Ke2 {[%clk 0:03:42.5]} 25... Ra3 {[%clk
0:03:58.7]} 26. Nf1 {[%clk 0:03:39]} 26... Rxa4 {[%clk 0:03:57.6]} 27. Nd2
{[%clk 0:03:38.9]} 27... Ra2 {[%clk 0:03:56]} 28. Kd3 {[%clk 0:03:37.7]} 28...
Rxd2+ {[%clk 0:03:54.7]} 29. Kxd2 {[%clk 0:03:36.5]} 29... d5 {[%clk 0:03:53.8]}
30. exd5 {[%clk 0:03:35.5]} 30... exd5 {[%clk 0:03:52.9]} 31. Kd3 {[%clk
0:03:35.2]} 31... c5 {[%clk 0:03:52]} 32. g4 {[%clk 0:03:34.5]} 32... b5 {[%clk
0:03:51.1]} 33. h4 {[%clk 0:03:34.4]} 33... a5 {[%clk 0:03:50.1]} 34. Kc3 {[%clk
0:03:34.3]} 34... a4 {[%clk 0:03:47.6]} 35. g5 {[%clk 0:03:34.2]} 35... b4+
{[%clk 0:03:46.7]} 36. Kb2 {[%clk 0:03:33.6]} 36... c4 {[%clk 0:03:45.7]} 37. h5
{[%clk 0:03:33.3]} 37... d4 {[%clk 0:03:44.3]} 38. g6 {[%clk 0:03:32.6]} 38...
hxg6 {[%clk 0:03:43]} 39. hxg6 {[%clk 0:03:31.8]} 39... e4 {[%clk 0:03:41.1]}
40. Kc2 {[%clk 0:03:31.7]} 40... e3 {[%clk 0:03:39.4]} 41. Kc1 {[%clk
0:03:31.6]} 41... d3 {[%clk 0:03:37.2]} 42. Kd1 {[%clk 0:03:31.5]} 42... a3
{[%clk 0:03:33.7]} 43. Kc1 {[%clk 0:03:31.4]} 43... b3 {[%clk 0:03:29.8]} 44.
Kb1 {[%clk 0:03:31.3]} 44... e2 {[%clk 0:03:27.6]} 45. Kc1 {[%clk 0:03:28.8]}
45... e1=Q# {[%clk 0:03:26.6]} 0-1

[Event "Live Chess"]
[Site "Chess.com"]
[Date "2024.06.02"]
[Round "-"]
[White "peteopeteo"]
[Black "vincents82"]
[Result "0-1"]
[WhiteElo "1539"]
[BlackElo "2014"]
[TimeControl "300"]
[EndTime "0:35:16 PDT"]
[Termination "vincents82 won by checkmate"]

1. e4 {[%clk 0:04:59.2]} 1... d5 {[%clk 0:04:58.4]} 2. exd5 {[%clk 0:04:57.3]}
2... Qxd5 {[%clk 0:04:57]} 3. Nc3 {[%clk 0:04:57.2]} 3... Qd8 {[%clk 0:04:56]}
4. d4 {[%clk 0:04:56.4]} 4... Nf6 {[%clk 0:04:54.9]} 5. Nf3 {[%clk 0:04:55.9]}
5... Bg4 {[%clk 0:04:53.9]} 6. h3 {[%clk 0:04:53.4]} 6... Bxf3 {[%clk
0:04:52.7]} 7. Qxf3 {[%clk 0:04:53.3]} 7... c6 {[%clk 0:04:52.2]} 8. Bc4 {[%clk
0:04:51.5]} 8... e6 {[%clk 0:04:51]} 9. Be3 {[%clk 0:04:50.4]} 9... Bb4 {[%clk
0:04:49.5]} 10. O-O {[%clk 0:04:42.2]} 10... Nbd7 {[%clk 0:04:48.2]} 11. Ne4
{[%clk 0:04:37.8]} 11... O-O {[%clk 0:04:45.8]} 12. c3 {[%clk 0:04:34.8]} 12...
Be7 {[%clk 0:04:44.1]} 13. Bd3 {[%clk 0:04:33.1]} 13... Nxe4 {[%clk 0:04:42.5]}
14. Qxe4 {[%clk 0:04:32]} 14... Nf6 {[%clk 0:04:40.8]} 15. Qf3 {[%clk
0:04:24.9]} 15... Qd5 {[%clk 0:04:38.8]} 16. Qg3 {[%clk 0:04:16.8]} 16... Ne4
{[%clk 0:04:27.3]} 17. Qg4 {[%clk 0:04:05.9]} 17... f5 {[%clk 0:04:20.7]} 18.
Qf4 {[%clk 0:03:50.2]} 18... Bd6 {[%clk 0:04:03.7]} 19. Bxe4 {[%clk 0:03:23.4]}
19... fxe4 {[%clk 0:03:47.6]} 20. Qg4 {[%clk 0:03:17.2]} 20... Qf5 {[%clk
0:03:44.9]} 21. Qg5 {[%clk 0:03:01.1]} 21... h6 {[%clk 0:03:40.7]} 22. Qh4
{[%clk 0:02:52.5]} 22... e5 {[%clk 0:03:38.5]} 23. Rad1 {[%clk 0:02:34]} 23...
exd4 {[%clk 0:03:28.7]} 24. Bxd4 {[%clk 0:02:33.9]} 24... Rae8 {[%clk
0:03:24.4]} 25. Bxg7 {[%clk 0:02:24]} 25... Kxg7 {[%clk 0:03:20.2]} 26. Rxd6
{[%clk 0:02:22.5]} 26... Re6 {[%clk 0:03:15.7]} 27. Rd7+ {[%clk 0:02:15]} 27...
Rf7 {[%clk 0:03:11.1]} 28. Qg3+ {[%clk 0:02:02.6]} 28... Kh7 {[%clk 0:03:05.3]}
29. Qc7 {[%clk 0:01:55.4]} 29... Rf6 {[%clk 0:03:03.9]} 30. Qxb7 {[%clk
0:01:48.7]} 30... e3 {[%clk 0:03:02.1]} 31. Rxf7+ {[%clk 0:01:46.8]} 31... Rxf7
{[%clk 0:03:00.8]} 32. Qxc6 {[%clk 0:01:39.6]} 32... e2 {[%clk 0:02:58.7]} 33.
Rc1 {[%clk 0:01:01]} 33... Qxf2+ {[%clk 0:02:55.8]} 34. Kh1 {[%clk 0:00:59.6]}
34... Qf1+ {[%clk 0:02:50.8]} 35. Rxf1 {[%clk 0:00:50.9]} 35... exf1=Q+ {[%clk
0:02:48.1]} 36. Kh2 {[%clk 0:00:50.8]} 36... Qf4+ {[%clk 0:02:46.9]} 37. Kh1
{[%clk 0:00:49.1]} 37... Re7 {[%clk 0:02:40]} 38. Qd5 {[%clk 0:00:40.8]} 38...
Re1# {[%clk 0:02:35.9]} 0-1

[Event "Live Chess"]
[Site "Chess.com"]
[Date "2024.06.02"]
[Round "-"]
[White "Dhaydon19"]
[Black "SimonBoy1"]
[Result "1-0"]
[WhiteElo "2651"]
[BlackElo "1530"]
[TimeControl "300"]
[EndTime "0:35:28 PDT"]
[Termination "Dhaydon19 won by resignation"]

1. d4 {[%clk 0:04:58.3]} 1... d5 {[%clk 0:04:58]} 2. Nf3 {[%clk 0:04:57.3]} 2...
e6 {[%clk 0:04:57.2]} 3. g3 {[%clk 0:04:54.6]} 3... Nf6 {[%clk 0:04:56]} 4. Bg2
{[%clk 0:04:54.2]} 4... c6 {[%clk 0:04:55.5]} 5. O-O {[%clk 0:04:53.9]} 5... Be7
{[%clk 0:04:54.9]} 6. c4 {[%clk 0:04:53.2]} 6... O-O {[%clk 0:04:54.2]} 7. Qc2
{[%clk 0:04:52.1]} 7... Nbd7 {[%clk 0:04:53.3]} 8. Nc3 {[%clk 0:04:51.3]} 8...
b6 {[%clk 0:04:52.4]} 9. Rd1 {[%clk 0:04:50.3]} 9... Bb7 {[%clk 0:04:52]} 10. b3
{[%clk 0:04:48.1]} 10... Rc8 {[%clk 0:04:50.9]} 11. Bb2 {[%clk 0:04:46.6]} 11...
c5 {[%clk 0:04:49.3]} 12. dxc5 {[%clk 0:04:45.4]} 12... bxc5 {[%clk 0:04:40.6]}
13. e3 {[%clk 0:04:41.9]} 13... Nb6 {[%clk 0:04:38.2]} 14. Ne2 {[%clk
0:04:35.2]} 14... Qc7 {[%clk 0:04:36.9]} 15. Be5 {[%clk 0:04:33.3]} 15... Bd6
{[%clk 0:04:35.4]} 16. Bxd6 {[%clk 0:04:32.4]} 16... Qxd6 {[%clk 0:04:35.3]} 17.
Nf4 {[%clk 0:04:31.6]} 17... Rfd8 {[%clk 0:04:27.2]} 18. Rac1 {[%clk 0:04:17.9]}
18... Qc7 {[%clk 0:04:22.6]} 19. Qc3 {[%clk 0:04:12.3]} 19... Ne4 {[%clk
0:04:13.2]} 20. Qc2 {[%clk 0:04:11]} 20... Nf6 {[%clk 0:04:07.5]} 21. cxd5
{[%clk 0:04:07.2]} 21... exd5 {[%clk 0:04:05.8]} 22. Qb2 {[%clk 0:04:03.1]}
22... a5 {[%clk 0:03:50.1]} 23. Ne5 {[%clk 0:03:59]} 23... a4 {[%clk 0:03:37.3]}
24. Nfd3 {[%clk 0:03:36.5]} 24... axb3 {[%clk 0:03:29.4]} 25. axb3 {[%clk
0:03:30.9]} 25... c4 {[%clk 0:03:17.2]} 26. bxc4 {[%clk 0:03:28.6]} 26... dxc4
{[%clk 0:03:15.5]} 27. Bxb7 {[%clk 0:03:26.4]} 27... Qxb7 {[%clk 0:03:03.9]} 28.
Nxc4 {[%clk 0:03:24.9]} 28... Qa6 {[%clk 0:02:24.7]} 29. Qxb6 {[%clk 0:03:19.3]}
29... Qxb6 {[%clk 0:02:18.8]} 30. Nxb6 {[%clk 0:03:17.7]} 30... Rxc1 {[%clk
0:02:16.9]} 31. Rxc1 {[%clk 0:03:16.9]} 31... h6 {[%clk 0:02:14]} 32. Ne5 {[%clk
0:03:14]} 32... Rd6 {[%clk 0:02:11.1]} 33. Rc8+ {[%clk 0:03:09.2]} 33... Kh7
{[%clk 0:02:09.9]} 34. Rh8+ {[%clk 0:03:08]} 34... Kxh8 {[%clk 0:02:06.2]} 35.
Nxf7+ {[%clk 0:03:07.6]} 35... Kg8 {[%clk 0:02:05]} 36. Nxd6 {[%clk 0:03:07.3]}
36... Kf8 {[%clk 0:02:03.7]} 37. Nbc4 {[%clk 0:03:06.2]} 37... Ke7 {[%clk
0:02:03.6]} 1-0

[Event "Live Chess"]
[Site "Chess.com"]
[Date "2024.06.02"]
[Round "-"]
[White "juniortay"]
[Black "upoe610"]
[Result "1-0"]
[WhiteElo "2384"]
[BlackElo "2186"]
[TimeControl "300"]
[EndTime "0:35:30 PDT"]
[Termination "juniortay won by resignation"]

1. e4 {[%clk 0:04:58]} 1... e5 {[%clk 0:04:54.7]} 2. Nc3 {[%clk 0:04:55.3]} 2...
Nf6 {[%clk 0:04:53.5]} 3. f4 {[%clk 0:04:54.3]} 3... d5 {[%clk 0:04:52.1]} 4.
fxe5 {[%clk 0:04:53.4]} 4... Nxe4 {[%clk 0:04:51.2]} 5. d3 {[%clk 0:04:53]} 5...
Nxc3 {[%clk 0:04:49.3]} 6. bxc3 {[%clk 0:04:52.4]} 6... d4 {[%clk 0:04:49.2]} 7.
Nf3 {[%clk 0:04:51.3]} 7... dxc3 {[%clk 0:04:47.7]} 8. Be2 {[%clk 0:04:49.9]}
8... Nc6 {[%clk 0:04:44.4]} 9. O-O {[%clk 0:04:48.7]} 9... Bc5+ {[%clk
0:04:43.1]} 10. Kh1 {[%clk 0:04:47.6]} 10... Be6 {[%clk 0:04:38.8]} 11. Qe1
{[%clk 0:04:46.3]} 11... Qe7 {[%clk 0:04:25.6]} 12. Qg3 {[%clk 0:04:44.5]} 12...
O-O-O {[%clk 0:04:23]} 13. Ng5 {[%clk 0:04:38.3]} 13... Nd4 {[%clk 0:04:20.8]}
14. Bd1 {[%clk 0:04:36.8]} 14... Bd5 {[%clk 0:04:17]} 15. Bf4 {[%clk 0:04:24.3]}
15... h6 {[%clk 0:04:12.9]} 16. Ne4 {[%clk 0:04:20.5]} 16... Bb6 {[%clk
0:04:08]} 17. a4 {[%clk 0:04:13.1]} 17... Bxe4 {[%clk 0:03:59.8]} 18. dxe4
{[%clk 0:04:08.6]} 18... Qc5 {[%clk 0:03:53.3]} 19. Qxg7 {[%clk 0:03:53.3]}
19... Rhg8 {[%clk 0:03:49.9]} 20. Qxf7 {[%clk 0:03:49.5]} 20... Rdf8 {[%clk
0:03:47.2]} 21. Qd5 {[%clk 0:03:42]} 21... Qxd5 {[%clk 0:03:29.9]} 22. exd5
{[%clk 0:03:40.7]} 22... Nf5 {[%clk 0:03:21.3]} 23. g3 {[%clk 0:03:29.8]} 23...
Ne3 {[%clk 0:03:11.6]} 24. Re1 {[%clk 0:03:23.1]} 24... Nxd5 {[%clk 0:03:08.1]}
25. Rf1 {[%clk 0:03:00.1]} 25... Nxf4 {[%clk 0:03:05.2]} 26. gxf4 {[%clk
0:02:55.6]} 26... Rxf4 {[%clk 0:03:01.9]} 27. Bf3 {[%clk 0:02:54.7]} 27... a5
{[%clk 0:02:56.8]} 28. Bxb7+ {[%clk 0:02:52.6]} 28... Kxb7 {[%clk 0:02:54.8]}
29. Rxf4 {[%clk 0:02:51.9]} 29... Rd8 {[%clk 0:02:49.8]} 30. e6 {[%clk
0:02:47.6]} 30... Rd2 {[%clk 0:02:45.3]} 31. Re4 {[%clk 0:02:42.5]} 31... Rd8
{[%clk 0:02:40.3]} 32. e7 {[%clk 0:02:38.4]} 32... Re8 {[%clk 0:02:39.5]} 33.
Rd1 {[%clk 0:02:37.5]} 33... Bc5 {[%clk 0:02:36.4]} 34. Rd8 {[%clk 0:02:27.9]}
34... Rxe7 {[%clk 0:02:34.8]} 35. Rxe7 {[%clk 0:02:26.9]} 35... Bxe7 {[%clk
0:02:34.6]} 36. Rd5 {[%clk 0:02:24]} 36... Kb6 {[%clk 0:02:30.3]} 37. Kg2 {[%clk
0:02:21.8]} 37... Bg5 {[%clk 0:02:29]} 38. Kf3 {[%clk 0:02:19.9]} 38... Bd2
{[%clk 0:02:28.9]} 39. Ke4 {[%clk 0:02:17]} 39... c6 {[%clk 0:02:26.8]} 40. Rh5
{[%clk 0:02:15]} 40... Kc7 {[%clk 0:02:24.7]} 41. Kd4 {[%clk 0:02:13.5]} 41...
Kd6 {[%clk 0:02:23.5]} 42. Kc4 {[%clk 0:02:12.4]} 42... Ke6 {[%clk 0:02:20.6]}
43. Rxa5 {[%clk 0:02:11.4]} 43... Kd6 {[%clk 0:02:17.3]} 44. Rf5 {[%clk
0:02:08.3]} 44... Ke6 {[%clk 0:02:14.4]} 45. Rh5 {[%clk 0:02:06.4]} 45... Kd6
{[%clk 0:02:13.5]} 46. a5 {[%clk 0:02:04.9]} 46... Kc7 {[%clk 0:02:12.4]} 47.
Rf5 {[%clk 0:02:01.1]} 47... Kb7 {[%clk 0:02:11.3]} 48. Rf6 {[%clk 0:01:54.5]}
48... Bg5 {[%clk 0:02:07]} 49. Rg6 {[%clk 0:01:53.2]} 49... Bd2 {[%clk
0:02:05.7]} 50. a6+ {[%clk 0:01:46.2]} 50... Kxa6 {[%clk 0:02:04]} 51. Rxc6+
{[%clk 0:01:45.3]} 51... Ka5 {[%clk 0:02:03.4]} 52. h4 {[%clk 0:01:42.9]} 52...
h5 {[%clk 0:01:53.5]} 53. Rc5+ {[%clk 0:01:40.6]} 53... Ka4 {[%clk 0:01:52.4]}
54. Rxh5 {[%clk 0:01:39.2]} 54... Ka3 {[%clk 0:01:52.3]} 55. Ra5+ {[%clk
0:01:38]} 55... Kb2 {[%clk 0:01:51.6]} 56. Kd3 {[%clk 0:01:36.7]} 56... Kc1
{[%clk 0:01:49.7]} 57. h5 {[%clk 0:01:34.9]} 57... Kd1 {[%clk 0:01:49]} 58. Ra6
{[%clk 0:01:34]} 58... Ke1 {[%clk 0:01:48.1]} 59. h6 {[%clk 0:01:33.1]} 59...
Kf2 {[%clk 0:01:47.6]} 60. h7 {[%clk 0:01:30.7]} 1-0